[Event "Catalan Youth-ch 2020"]
[Site "Salou"]
[Date "2020.09.07"]
[Round "4.7"]
[White "Prada Villagrasa, Pau Manel"]
[Black "Jove Albaiges, Guillem"]
[Result "0-1"]
[ECO "A22"]
[WhiteElo "1573"]
[BlackElo "1491"]
[Annotator "NA"]
[PlyCount "80"]
[EventDate "2020.09.07"]
[EventType "swiss"]
[EventCountry "ESP"]
[SourceTitle "playchess.com"]
[Source "ChessBase"]
[SourceQuality "1"]
[TimeControl "5400+30"]

1. e4 {[%emt 0:00:00]} e5 {[%emt 0:00:00]} 2. c4 {[%emt 0:00:23]} Nf6 {[%emt 0:00:00]} 3. Nc3 {[%emt 0:00:52]} Bc5 {[%emt 0:00:57]} 4. d3 {[%emt 0:01:12]} Nc6 {[%emt 0:01:37]} 5. g3 {[%emt 0:01:03]} d6 {[%emt 0:03:59]} 6. Bg2 {[%emt 0:01:40]} h6 {[%emt 0:00:00]} 7. h3 {[%emt 0:01:55]} Be6 {[%emt 0:02:06]} 8. Nf3 {[%emt 0:02:47]} Qd7 {[%emt 0:02:17]} 9. Nd5 {[%emt 0:00:00]} Bxd5 {[%emt 0:01:49]} 10. cxd5 {[%emt 0:01:31]} Nd4 {[%emt 0:00:21]} 11. O-O {[%emt 0:02:38]} O-O {[%emt 0:02:35]} 12. Bd2 {[%emt 0:09:35]} Rfe8 {[%emt 0:08:09]} 13. Bc3 {[%emt 0:00:00]} Nb5 {[%emt 0:05:29]} 14. Rc1 {[%emt 0:04:54]} Nxc3 {[%emt 0:04:45]} 15. bxc3 {[%emt 0:00:00]} Rad8 {[%emt 0:07:48]} 16. Kh2 {[%emt 0:00:00]} Bb6 {[%emt 0:01:18]} 17. Nh4 {[%emt 0:00:00]} c6 {[%emt 0:08:44]} 18. c4 {[%emt 0:00:00]} cxd5 {[%emt 0:00:07]} 19. cxd5 {[%emt 0:00:00]} Rc8 {[%emt 0:01:36]} 20. Nf5 {[%emt 0:01:13]} Rxc1 {[%emt 0:00:38]} 21. Qxc1 {[%emt 0:00:58]} Kh7 {[%emt 0:04:56]} 22. f4 {[%emt 0:07:39]} Ng8 {[%emt 0:06:41]} 23. g4 {[%emt 0:07:53]} Ne7 {[%emt 0:07:46]} 24. fxe5 {[%emt 0:04:04]} Nxf5 {[%emt 0:11:22]} 25. gxf5 {[%emt 0:10:18]} dxe5 {[%emt 0:00:00]} 26. f6 {[%emt 0:08:42]} g6 {[%emt 0:03:04]} 27. Bf3 {[%emt 0:05:43]} Rc8 {[%emt 0:00:00]} 28. Qb2 {[%emt 0:00:00]} Qd6 {[%emt 0:00:00]} 29. Kh1 {[%emt 0:01:31]} Qxf6 {[%emt 0:00:00]} 30. Bg2 {[%emt 0:01:20]} Qe7 {[%emt 0:00:00]} 31. Qb3 {[%emt 0:03:54]} f6 {[%emt 0:07:02]} 32. Kh2 {[%emt 0:04:29]} Kg7 {[%emt 0:02:56]} 33. a4 {[%emt 0:02:40]} Bd4 {[%emt 0:01:12]} 34. Rb1 {[%emt 0:00:40]} b6 {[%emt 0:02:37]} 35. Rd1 {[%emt 0:02:15]} Qd7 {[%emt 0:00:59]} 36. Qa2 {[%emt 0:01:59]} Qd6 {[%emt 0:00:00]} 37. Rd2 {[%emt 0:02:42]} Be3 {[%emt 0:00:00]} 38. Rc2 {[%emt 0:00:27]} Rxc2 {[%emt 0:00:00]} 39. Qxc2 {[%emt 0:00:11]} Qc5 {[%emt 0:01:19]} 40. Qb3 {[%emt 0:00:11]} Bf4+ {[%emt 0:00:40]} 0-1

[Event "Catalan Youth-ch 2020"]
[Site "Salou"]
[Date "2020.09.07"]
[Round "4.8"]
[White "Prats Safont, Sergi"]
[Black "Gomez Navais, Marcal"]
[Result "1/2-1/2"]
[ECO "B36"]
[WhiteElo "2103"]
[BlackElo "1796"]
[Annotator "NA"]
[PlyCount "180"]
[EventDate "2020.09.07"]
[EventType "swiss"]
[EventCountry "ESP"]
[SourceTitle "playchess.com"]
[Source "ChessBase"]
[SourceQuality "1"]
[TimeControl "5400+30"]

1. e4 {[%emt 0:00:02]} c5 {[%emt 0:00:11]} 2. Nf3 {[%emt 0:00:06]} g6 {[%emt 0:00:06]} 3. d4 {[%emt 0:00:10]} cxd4 {[%emt 0:00:07]} 4. Nxd4 {[%emt 0:00:07]} Nc6 {[%emt 0:00:06]} 5. c4 {[%emt 0:00:11]} Nf6 {[%emt 0:00:10]} 6. Nc3 {[%emt 0:00:06]} d6 {[%emt 0:00:07]} 7. Be2 {[%emt 0:00:13]} Nxd4 {[%emt 0:00:07]} 8. Qxd4 {[%emt 0:00:06]} Bg7 {[%emt 0:00:05]} 9. Be3 {[%emt 0:00:08]} O-O {[%emt 0:00:08]} 10. Qd3 {[%emt 0:00:05]} Be6 {[%emt 0:05:12]} 11. Bd4 {[%emt 0:00:13]} Qa5 {[%emt 0:05:57]} 12. O-O {[%emt 0:00:34]} Rfc8 {[%emt 0:01:35]} 13. b3 {[%emt 0:00:17]} a6 {[%emt 0:03:35]} 14. Kh1 {[%emt 0:00:16]} Nd7 {[%emt 0:03:09]} 15. f4 {[%emt 0:00:54]} f5 {[%emt 0:08:01]} 16. Bxg7 {[%emt 0:05:42]} Kxg7 {[%emt 0:00:36]} 17. Bf3 {[%emt 0:04:14]} Rab8 {[%emt 0:18:22]} 18. exf5 {[%emt 0:04:13]} Bxf5 {[%emt 0:10:05]} 19. Qe3 {[%emt 0:03:03]} e5 {[%emt 0:07:03]} 20. Bd5 {[%emt 0:12:18]} Re8 {[%emt 0:02:39]} 21. h3 {[%emt 0:11:05]} exf4 {[%emt 0:07:32]} 22. Qd4+ {[%emt 0:02:39]} Ne5 {[%emt 0:00:57]} 23. Rxf4 {[%emt 0:01:28]} Qc5 {[%emt 0:02:44]} 24. Qd2 {[%emt 0:00:35]} Re7 {[%emt 0:05:13]} 25. Be4 {[%emt 0:07:32]} Be6 {[%emt 0:02:54]} 26. a4 {[%emt 0:10:31]} b6 {[%emt 0:02:09]} 27. Bc2 {[%emt 0:01:11]} Rd8 {[%emt 0:00:58]} 28. Rd4 {[%emt 0:00:56]} Nc6 {[%emt 0:01:29]} 29. Rf4 {[%emt 0:01:31]} Ne5 {[%emt 0:00:46]} 30. Rd1 {[%emt 0:01:12]} Red7 {[%emt 0:01:44]} 31. Ne4 {[%emt 0:01:39]} Qc7 {[%emt 0:02:20]} 32. Ng5 {[%emt 0:04:11]} Bg8 {[%emt 0:01:24]} 33. Be4 {[%emt 0:00:25]} h6 {[%emt 0:01:25]} 34. Nf3 {[%emt 0:00:21]} g5 {[%emt 0:04:39]} 35. Rf5 {[%emt 0:00:06]} Bh7 {[%emt 0:01:15]} 36. Nd4 {[%emt 0:00:45]} Bxf5 {[%emt 0:01:38]} 37. Bxf5 {[%emt 0:00:05]} Re7 {[%emt 0:00:03]} 38. Ne6+ {[%emt 0:01:05]} Rxe6 {[%emt 0:00:06]} 39. Bxe6 {[%emt 0:00:02]} Qc5 {[%emt 0:01:59]} 40. Rf1 {[%emt 0:02:05]} Rf8 {[%emt 0:00:59]} 41. Rxf8 {[%emt 0:01:17]} Kxf8 {[%emt 0:00:05]} 42. Qc2 {[%emt 0:00:26]} Kg7 {[%emt 0:00:35]} 43. Qe4 {[%emt 0:00:08]} Qf2 {[%emt 0:00:50]} 44. Qb7+ {[%emt 0:00:34]} Kf6 {[%emt 0:00:09]} 45. Bd5 {[%emt 0:07:41]} Qf1+ {[%emt 0:00:34]} 46. Kh2 {[%emt 0:00:02]} Qf4+ {[%emt 0:00:58]} 47. g3 {[%emt 0:00:32]} Qf2+ {[%emt 0:00:33]} 48. Bg2 {[%emt 0:00:04]} g4 {[%emt 0:00:28]} 49. hxg4 {[%emt 0:02:23]} Nxg4+ {[%emt 0:00:27]} 50. Kh3 {[%emt 0:00:10]} Ne5 {[%emt 0:00:42]} 51. Qe4 {[%emt 0:02:09]} Qf5+ {[%emt 0:00:24]} 52. Qxf5+ {[%emt 0:01:28]} Kxf5 {[%emt 0:00:05]} 53. Kh4 {[%emt 0:00:10]} Kg6 {[%emt 0:00:37]} 54. Be4+ {[%emt 0:01:12]} Kg7 {[%emt 0:00:55]} 55. g4 {[%emt 0:02:52]} a5 {[%emt 0:00:16]} 56. g5 {[%emt 0:00:45]} hxg5+ {[%emt 0:00:31]} 57. Kxg5 {[%emt 0:00:02]} Kf7 {[%emt 0:00:31]} 58. Kf4 {[%emt 0:01:02]} Nd7 {[%emt 0:00:35]} 59. Ke3 {[%emt 0:00:30]} Nc5 {[%emt 0:00:28]} 60. Kd4 {[%emt 0:01:35]} Ke6 {[%emt 0:00:43]} 61. Bc2 {[%emt 0:00:34]} Nb7 {[%emt 0:00:30]} 62. Bd1 {[%emt 0:02:20]} Kd7 {[%emt 0:00:30]} 63. Kc3 {[%emt 0:00:55]} Ke6 {[%emt 0:00:30]} 64. b4 {[%emt 0:00:16]} Ke5 {[%emt 0:00:23]} 65. Bf3 {[%emt 0:00:56]} Nd8 {[%emt 0:00:09]} 66. c5 {[%emt 0:00:30]} dxc5 {[%emt 0:01:00]} 67. bxa5 {[%emt 0:00:14]} bxa5 {[%emt 0:00:12]} 68. Kc4 {[%emt 0:00:05]} Kd6 {[%emt 0:00:20]} 69. Kb5 {[%emt 0:00:04]} c4 {[%emt 0:00:58]} 70. Kxc4 {[%emt 0:05:11]} Kc7 {[%emt 0:00:10]} 71. Kb5 {[%emt 0:00:05]} Nb7 {[%emt 0:00:45]} 72. Bg2 {[%emt 0:00:01]} Nd6+ {[%emt 0:00:37]} 73. Kc5 {[%emt 0:01:01]} Nb7+ {[%emt 0:00:15]} 74. Kb5 {[%emt 0:00:05]} Nd6+ {[%emt 0:00:07]} 75. Kxa5 {[%emt 0:00:05]} Nc4+ {[%emt 0:00:58]} 76. Kb5 {[%emt 0:00:15]} Nb6 {[%emt 0:00:31]} 77. a5 {[%emt 0:00:06]} Nc8 {[%emt 0:00:21]} 78. Ka6 {[%emt 0:01:54]} Kb8 {[%emt 0:00:17]} 79. Bh3 {[%emt 0:00:14]} Na7 {[%emt 0:00:50]} 80. Kb6 {[%emt 0:00:16]} Nc8+ {[%emt 0:00:33]} 81. Kc5 {[%emt 0:00:44]} Kb7 {[%emt 0:00:32]} 82. Bf1 {[%emt 0:00:30]} Ne7 {[%emt 0:00:27]} 83. Kd6 {[%emt 0:00:53]} Nf5+ {[%emt 0:00:35]} 84. Ke5 {[%emt 0:00:26]} Ne7 {[%emt 0:00:29]} 85. Kd6 {[%emt 0:00:23]} Nf5+ {[%emt 0:00:08]} 86. Kc5 {[%emt 0:00:02]} Ne7 {[%emt 0:00:34]} 87. a6+ {[%emt 0:00:07]} Ka7 {[%emt 0:00:09]} 88. Kd6 {[%emt 0:00:13]} Nf5+ {[%emt 0:00:09]} 89. Ke5 {[%emt 0:00:08]} Ne7 {[%emt 0:00:15]} 90. Bg2 {[%emt 0:00:51]} Kxa6 {[%emt 0:00:22]} 1/2-1/2

[Event "Catalan Youth-ch 2020"]
[Site "Salou"]
[Date "2020.09.07"]
[Round "4.8"]
[White "Mompel Ferruz, Xavier"]
[Black "Roure Sola, Oriol"]
[Result "1-0"]
[ECO "C28"]
[WhiteElo "1505"]
[BlackElo "1160"]
[Annotator "NA"]
[PlyCount "71"]
[EventDate "2020.09.07"]
[EventType "swiss"]
[EventCountry "ESP"]
[SourceTitle "playchess.com"]
[Source "ChessBase"]
[SourceQuality "1"]
[TimeControl "5400+30"]

1. e4 {[%emt 0:00:00]} e5 {[%emt 0:00:00]} 2. Nc3 {[%emt 0:00:18]} Nc6 {[%emt 0:00:12]} 3. Bc4 {[%emt 0:00:28]} Nf6 {[%emt 0:01:28]} 4. d3 {[%emt 0:00:58]} Na5 {[%emt 0:01:18]} 5. Bb3 {[%emt 0:04:55]} Nxb3 {[%emt 0:04:50]} 6. axb3 {[%emt 0:00:08]} d5 {[%emt 0:01:10]} 7. exd5 {[%emt 0:01:29]} Bb4 {[%emt 0:03:29]} 8. Bd2 {[%emt 0:01:54]} Bxc3 {[%emt 0:02:06]} 9. Bxc3 {[%emt 0:00:32]} Qxd5 {[%emt 0:02:48]} 10. Nf3 {[%emt 0:03:21]} Bg4 {[%emt 0:01:19]} 11. Qe2 {[%emt 0:02:39]} Bxf3 {[%emt 0:02:47]} 12. Qxf3 {[%emt 0:01:00]} Qxf3 {[%emt 0:00:25]} 13. gxf3 {[%emt 0:00:09]} O-O-O {[%emt 0:02:47]} 14. Rxa7 {[%emt 0:00:30]} Nd5 {[%emt 0:02:16]} 15. Kd2 {[%emt 0:00:39]} f6 {[%emt 0:01:39]} 16. Rha1 {[%emt 0:01:40]} Nxc3 {[%emt 0:01:23]} 17. bxc3 {[%emt 0:00:52]} b6 {[%emt 0:01:20]} 18. R1a6 {[%emt 0:00:38]} h5 {[%emt 0:01:29]} 19. c4 {[%emt 0:00:17]} Rh6 {[%emt 0:00:35]} 20. b4 {[%emt 0:01:26]} Rg6 {[%emt 0:00:54]} 21. c5 {[%emt 0:00:52]} bxc5 {[%emt 0:00:35]} 22. bxc5 {[%emt 0:00:07]} Rg2 {[%emt 0:00:42]} 23. c6 {[%emt 0:00:16]} Rxd3+ {[%emt 0:01:33]} 24. cxd3 {[%emt 0:00:37]} Kd8 {[%emt 0:00:13]} 25. Ke3 {[%emt 0:00:36]} Rxh2 {[%emt 0:00:33]} 26. Ra8+ {[%emt 0:00:19]} Ke7 {[%emt 0:00:30]} 27. Rh8 {[%emt 0:01:02]} h4 {[%emt 0:00:52]} 28. Ke2 {[%emt 0:00:09]} Rh1 {[%emt 0:00:24]} 29. Ra4 {[%emt 0:01:30]} g5 {[%emt 0:00:46]} 30. Rc4 {[%emt 0:00:56]} h3 {[%emt 0:00:48]} 31. Rh7+ {[%emt 0:00:51]} Ke6 {[%emt 0:01:07]} 32. Rxc7 {[%emt 0:00:28]} h2 {[%emt 0:00:41]} 33. Rh7 {[%emt 0:00:42]} Kf5 {[%emt 0:01:08]} 34. c7 {[%emt 0:00:00]} Kg6 {[%emt 0:00:41]} 35. Rxh2 {[%emt 0:00:00]} Rxh2 {[%emt 0:00:22]} 36. c8=Q {[%emt 0:00:35]} 1-0

[Event "Catalan Youth-ch 2020"]
[Site "Salou"]
[Date "2020.09.07"]
[Round "5.1"]
[White "Alvarez Albiol, Victor"]
[Black "Sole Pijuan, Ferran"]
[Result "1/2-1/2"]
[ECO "C28"]
[WhiteElo "2123"]
[BlackElo "2127"]
[Annotator "ChessBase"]
[PlyCount "81"]
[EventDate "2020.09.07"]
[EventType "swiss"]
[EventCountry "ESP"]
[SourceTitle "playchess.com"]
[Source "ChessBase"]
[SourceQuality "1"]
[TimeControl "5400+30"]

1. e4 e5 2. Bc4 Nf6 3. d3 Nc6 4. Nc3 d6 5. f4 exf4 6. Bxf4 Ne5 7. Bb3 Ng6 8. Bg3 h5 9. h3 h4 10. Bh2 Be6 11. Nf3 Bxb3 12. axb3 Be7 13. O-O Nh5 14. Nd4 Bf6 15. Nf5 Ne7 16. Qf3 Nxf5 17. exf5 Bd4+ 18. Kh1 Bxc3 19. bxc3 c6 20. Qe4+ Kd7 21. Qd4 Qf6 22. Ra4 Qxd4 23. Rxd4 Ng3+ 24. Bxg3 hxg3 25. Rg4 Ke7 26. Rxg7 {[%emt 0:12:04]} Rag8 {[%emt 0:12:12]} 27. f6+ {[%emt 0:00:30]} Kf8 {[%emt 0:00:30]} 28. Rf3 {[%emt 0:00:30]} Rxg7 {[%emt 0:00:30]} 29. fxg7+ {[%emt 0:00:30]} Kxg7 {[%emt 0:00:30]} 30. Rxg3+ {[%emt 0:00:30]} Kf6 {[%emt 0:00:30]} 31. Rf3+ {[%emt 0:00:30]} Ke6 {[%emt 0:00:30]} 32. g4 {[%emt 0:00:30]} a5 {[%emt 0:00:30]} 33. c4 {[%emt 0:00:30]} b5 {[%emt 0:00:30]} 34. cxb5 {[%emt 0:00:30]} cxb5 {[%emt 0:00:30]} 35. c4 {[%emt 0:00:30]} a4 {[%emt 0:00:30]} 36. bxa4 {[%emt 0:00:30]} bxa4 {[%emt 0:00:30]} 37. d4 {[%emt 0:00:30]} Rb8 {[%emt 0:00:30]} 38. Re3+ {[%emt 0:00:30]} Kf6 {[%emt 0:00:30]} 39. Rf3+ {[%emt 0:00:30]} Ke6 {[%emt 0:00:30]} 40. Re3+ {[%emt 0:00:30]} Kf6 {[%emt 0:00:30]} 41. Rf3+ {[%emt 0:00:30]} 1/2-1/2

[Event "Catalan Youth-ch 2020"]
[Site "Salou"]
[Date "2020.09.07"]
[Round "5.1"]
[White "Vinuesa Sorli, Ruben"]
[Black "Ribera Veganzones, Serni"]
[Result "0-1"]
[ECO "A85"]
[WhiteElo "1903"]
[BlackElo "1902"]
[Annotator "ChessBase"]
[PlyCount "122"]
[EventDate "2020.09.07"]
[EventType "swiss"]
[EventCountry "ESP"]
[SourceTitle "playchess.com"]
[Source "ChessBase"]
[SourceQuality "1"]
[TimeControl "5400+30"]

1. d4 {[%emt 0:00:00]} f5 {[%emt 0:00:00]} 2. c4 {[%emt 0:00:00]} Nf6 {[%emt 0:00:08]} 3. Nc3 {[%emt 0:00:03]} e6 {[%emt 0:00:13]} 4. e3 {[%emt 0:00:17]} b6 {[%emt 0:00:48]} 5. Bd3 {[%emt 0:00:25]} Bb7 {[%emt 0:00:55]} 6. f3 {[%emt 0:00:15]} Bb4 {[%emt 0:02:30]} 7. Qc2 {[%emt 0:00:13]} d6 {[%emt 0:02:56]} 8. Nge2 {[%emt 0:00:59]} Nbd7 {[%emt 0:00:53]} 9. Bd2 {[%emt 0:00:50]} Qe7 {[%emt 0:03:02]} 10. O-O {[%emt 0:01:23]} Bxc3 {[%emt 0:01:21]} 11. Bxc3 {[%emt 0:00:23]} O-O {[%emt 0:00:19]} 12. e4 {[%emt 0:02:18]} fxe4 {[%emt 0:00:29]} 13. fxe4 {[%emt 0:00:14]} e5 {[%emt 0:00:19]} 14. Ng3 {[%emt 0:03:20]} g6 {[%emt 0:01:16]} 15. d5 {[%emt 0:01:57]} a5 {[%emt 0:03:22]} 16. a4 {[%emt 0:02:16]} h5 {[%emt 0:09:16]} 17. Bd2 {[%emt 0:03:30]} Nh7 {[%emt 0:06:43]} 18. Bh6 {[%emt 0:03:46]} Rxf1+ {[%emt 0:00:52]} 19. Rxf1 {[%emt 0:00:25]} h4 {[%emt 0:12:29]} 20. Nh1 {[%emt 0:00:34]} g5 {[%emt 0:02:03]} 21. Qe2 {[%emt 0:04:18]} Kh8 {[%emt 0:14:19]} 22. Nf2 {[%emt 0:10:24]} Rg8 {[%emt 0:04:15]} 23. Ng4 {[%emt 0:00:46]} Nc5 {[%emt 0:09:04]} 24. Bc2 {[%emt 0:05:06]} Rg6 {[%emt 0:02:17]} 25. Qf3 {[%emt 0:03:22]} Bc8 {[%emt 0:05:11]} 26. Bf8 {[%emt 0:14:02]} Qe8 {[%emt 0:02:19]} 27. Nh6 {[%emt 0:14:56]} Nf6 {[%emt 0:04:06]} 28. Qxf6+ {[%emt 0:05:39]} Rxf6 {[%emt 0:00:02]} 29. Rxf6 {[%emt 0:00:09]} Nd7 {[%emt 0:01:06]} 30. Nf7+ {[%emt 0:00:55]} Kh7 {[%emt 0:00:29]} 31. Rh6+ {[%emt 0:00:14]} Kg8 {[%emt 0:00:10]} 32. Rh8+ {[%emt 0:00:09]} Kxf7 {[%emt 0:00:07]} 33. Bg7 {[%emt 0:10:24]} Qxh8 {[%emt 0:01:17]} 34. Bxh8 {[%emt 0:00:16]} Kg8 {[%emt 0:00:01]} 35. Bd1 {[%emt 0:03:23]} Kxh8 {[%emt 0:01:11]} 36. Bg4 {[%emt 0:00:09]} Kg7 {[%emt 0:01:09]} 37. Kf2 {[%emt 0:00:36]} Kf8 {[%emt 0:04:14]} 38. Kf3 {[%emt 0:01:11]} Ke7 {[%emt 0:00:36]} 39. Bf5 {[%emt 0:00:34]} Kd8 {[%emt 0:01:05]} 40. Kg4 {[%emt 0:00:34]} Nf6+ {[%emt 0:00:09]} 41. Kxg5 {[%emt 0:00:10]} Bxf5 {[%emt 0:00:05]} 42. exf5 {[%emt 0:01:51]} Ke7 {[%emt 0:04:22]} 43. Kxh4 {[%emt 0:00:16]} Ne4 {[%emt 0:00:39]} 44. g4 {[%emt 0:01:00]} Kf6 {[%emt 0:00:27]} 45. b3 {[%emt 0:00:56]} Nd2 {[%emt 0:01:33]} 46. g5+ {[%emt 0:01:17]} Kxf5 {[%emt 0:00:22]} 47. Kh5 {[%emt 0:00:17]} Ne4 {[%emt 0:00:52]} 48. h4 {[%emt 0:00:51]} Ng3+ {[%emt 0:00:27]} 49. Kh6 {[%emt 0:00:07]} Kg4 {[%emt 0:00:15]} 50. Kg6 {[%emt 0:03:31]} Kxh4 {[%emt 0:00:13]} 51. Kf6 {[%emt 0:00:08]} e4 {[%emt 0:00:10]} 52. g6 {[%emt 0:00:50]} Nh5+ {[%emt 0:00:10]} 53. Ke7 {[%emt 0:00:04]} e3 {[%emt 0:00:09]} 54. Kd7 {[%emt 0:00:02]} e2 {[%emt 0:00:28]} 55. Kxc7 {[%emt 0:00:05]} e1=Q {[%emt 0:00:05]} 56. Kxd6 {[%emt 0:00:10]} Qb4+ {[%emt 0:00:24]} 57. Kc6 {[%emt 0:00:25]} Qc5+ {[%emt 0:00:13]} 58. Kd7 {[%emt 0:00:06]} Kg5 {[%emt 0:00:06]} 59. d6 {[%emt 0:00:45]} Kxg6 {[%emt 0:00:12]} 60. Ke8 {[%emt 0:00:01]} Qxd6 {[%emt 0:00:42]} 61. b4 {[%emt 0:00:38]} Nf6# {[%emt 0:00:10]} 0-1

[Event "Catalan Youth-ch 2020"]
[Site "Salou"]
[Date "2020.09.07"]
[Round "5.2"]
[White "Saguillo Gonzalez, Oriol"]
[Black "Garcia Escoda, Marc"]
[Result "1/2-1/2"]
[ECO "B27"]
[WhiteElo "2124"]
[BlackElo "2054"]
[Annotator "ChessBase"]
[PlyCount "77"]
[EventDate "2020.09.07"]
[EventType "swiss"]
[EventCountry "ESP"]
[SourceTitle "playchess.com"]
[Source "ChessBase"]
[SourceQuality "1"]
[TimeControl "5400+30"]

1. e4 {[%emt 0:02:09]} c5 {[%emt 0:00:00]} 2. Nf3 {[%emt 0:00:07]} g6 {[%emt 0:00:00]} 3. d4 {[%emt 0:02:40]} cxd4 {[%emt 0:00:06]} 4. Qxd4 {[%emt 0:00:12]} Nf6 {[%emt 0:00:08]} 5. e5 {[%emt 0:00:08]} Nc6 {[%emt 0:00:08]} 6. Qa4 {[%emt 0:00:21]} Nd5 {[%emt 0:00:10]} 7. Qe4 {[%emt 0:00:05]} Nb6 {[%emt 0:00:05]} 8. Nc3 {[%emt 0:01:05]} Bg7 {[%emt 0:09:43]} 9. Bd3 {[%emt 0:04:38]} O-O {[%emt 0:02:29]} 10. Bg5 {[%emt 0:09:17]} d5 {[%emt 0:03:26]} 11. exd6 {[%emt 0:04:05]} Qxd6 {[%emt 0:01:05]} 12. O-O {[%emt 0:01:15]} Bf5 {[%emt 0:00:00]} 13. Qh4 {[%emt 0:04:23]} Bxd3 {[%emt 0:04:06]} 14. Rfd1 {[%emt 0:04:15]} Qb4 {[%emt 0:17:25]} 15. Qxb4 {[%emt 0:11:35]} Nxb4 {[%emt 0:02:52]} 16. cxd3 {[%emt 0:01:26]} N4d5 {[%emt 0:04:26]} 17. d4 {[%emt 0:05:44]} Rfc8 {[%emt 0:05:13]} 18. Rac1 {[%emt 0:00:59]} Nxc3 {[%emt 0:02:12]} 19. Rxc3 {[%emt 0:04:56]} Rxc3 {[%emt 0:00:00]} 20. bxc3 {[%emt 0:00:10]} e6 {[%emt 0:01:44]} 21. Rb1 {[%emt 0:14:07]} Rc8 {[%emt 0:00:00]} 22. Rb3 {[%emt 0:07:40]} h6 {[%emt 0:00:42]} 23. Be3 {[%emt 0:15:32]} Nd5 {[%emt 0:12:41]} 24. Rxb7 {[%emt 0:00:00]} Rxc3 {[%emt 0:00:42]} 25. Rxa7 {[%emt 0:00:00]} Nxe3 {[%emt 0:00:00]} 26. fxe3 {[%emt 0:00:00]} Rxe3 {[%emt 0:00:50]} 27. Kf2 {[%emt 0:00:39]} Rc3 {[%emt 0:02:09]} 28. Ra4 {[%emt 0:00:00]} Rc2+ {[%emt 0:00:00]} 29. Kf1 {[%emt 0:00:00]} Bf6 {[%emt 0:03:30]} 30. Ne5 {[%emt 0:00:00]} Bxe5 {[%emt 0:00:00]} 31. dxe5 {[%emt 0:00:00]} Kg7 {[%emt 0:00:00]} 32. a3 {[%emt 0:00:23]} g5 {[%emt 0:04:37]} 33. h4 {[%emt 0:10:41]} Kg6 {[%emt 0:04:09]} 34. hxg5 {[%emt 0:00:00]} Kxg5 {[%emt 0:01:47]} 35. g4 {[%emt 0:01:57]} h5 {[%emt 0:02:05]} 36. gxh5 {[%emt 0:00:00]} Kxh5 {[%emt 0:00:02]} 37. Rf4 {[%emt 0:01:47]} Kg6 {[%emt 0:00:58]} 38. Rf6+ {[%emt 0:00:00]} Kg7 {[%emt 0:01:13]} 39. Rf3 {[%emt 0:04:23]} 1/2-1/2

[Event "Catalan Youth-ch 2020"]
[Site "Salou"]
[Date "2020.09.07"]
[Round "5.2"]
[White "Rodriguez Gonzalez, Gerard"]
[Black "Bernado Lopez, Roger"]
[Result "0-1"]
[ECO "C76"]
[WhiteElo "1714"]
[BlackElo "2155"]
[Annotator "ChessBase"]
[PlyCount "78"]
[EventDate "2020.09.07"]
[EventType "swiss"]
[EventCountry "ESP"]
[SourceTitle "playchess.com"]
[Source "ChessBase"]
[SourceQuality "1"]
[TimeControl "5400+30"]

1. e4 {[%emt 0:00:00]} e5 {[%emt 0:00:00]} 2. Nf3 {[%emt 0:00:00]} Nc6 {[%emt 0:00:00]} 3. Bb5 {[%emt 0:00:04]} a6 {[%emt 0:00:00]} 4. Ba4 {[%emt 0:00:12]} g6 {[%emt 0:00:00]} 5. O-O {[%emt 0:01:12]} Bg7 {[%emt 0:00:00]} 6. c3 {[%emt 0:00:36]} d6 {[%emt 0:00:07]} 7. d4 {[%emt 0:01:49]} Bd7 {[%emt 0:00:09]} 8. Nbd2 {[%emt 0:05:15]} Nge7 {[%emt 0:07:01]} 9. dxe5 {[%emt 0:03:35]} dxe5 {[%emt 0:00:56]} 10. Re1 {[%emt 0:04:37]} O-O {[%emt 0:00:15]} 11. Nf1 {[%emt 0:00:32]} h6 {[%emt 0:04:10]} 12. Be3 {[%emt 0:03:21]} Be6 {[%emt 0:01:42]} 13. Qc2 {[%emt 0:05:05]} Qc8 {[%emt 0:04:40]} 14. Rad1 {[%emt 0:03:34]} b5 {[%emt 0:04:17]} 15. Bb3 {[%emt 0:00:14]} Na5 {[%emt 0:00:48]} 16. Bxe6 {[%emt 0:06:22]} Qxe6 {[%emt 0:00:17]} 17. b3 {[%emt 0:01:46]} Rfd8 {[%emt 0:03:01]} 18. Bc5 {[%emt 0:03:48]} Nb7 {[%emt 0:02:00]} 19. Ba3 {[%emt 0:00:47]} a5 {[%emt 0:11:53]} 20. Ne3 {[%emt 0:01:45]} c6 {[%emt 0:01:30]} 21. h3 {[%emt 0:09:55]} a4 {[%emt 0:11:06]} 22. Rxd8+ {[%emt 0:05:29]} Nxd8 {[%emt 0:00:34]} 23. c4 {[%emt 0:03:20]} axb3 {[%emt 0:04:58]} 24. Qxb3 {[%emt 0:00:19]} Bf8 {[%emt 0:06:22]} 25. Rb1 {[%emt 0:04:22]} f6 {[%emt 0:06:45]} 26. Ne1 {[%emt 0:07:23]} Nb7 {[%emt 0:05:46]} 27. Nd3 {[%emt 0:02:50]} Na5 {[%emt 0:02:21]} 28. Qc3 {[%emt 0:02:05]} Nxc4 {[%emt 0:01:03]} 29. Bxe7 {[%emt 0:09:51]} Bxe7 {[%emt 0:00:22]} 30. Nxc4 {[%emt 0:00:58]} Qxc4 {[%emt 0:02:49]} 31. Qxc4+ {[%emt 0:01:59]} bxc4 {[%emt 0:00:01]} 32. Nc1 {[%emt 0:01:43]} Bc5 {[%emt 0:02:55]} 33. Kf1 {[%emt 0:00:27]} Kf7 {[%emt 0:01:18]} 34. Rb7+ {[%emt 0:00:58]} Ke6 {[%emt 0:01:18]} 35. Rg7 {[%emt 0:00:19]} Rb8 {[%emt 0:03:29]} 36. Ke1 {[%emt 0:00:36]} g5 {[%emt 0:01:37]} 37. Rh7 {[%emt 0:02:20]} Rb2 {[%emt 0:01:00]} 38. a4 {[%emt 0:00:52]} Bb4+ {[%emt 0:00:54]} 39. Kd1 {[%emt 0:01:01]} Rd2+ {[%emt 0:00:09]} 0-1

[Event "Catalan Youth-ch 2020"]
[Site "Salou"]
[Date "2020.09.07"]
[Round "5.3"]
[White "Ribera Veganzones, Josep Maria"]
[Black "Masague Artero, Guerau"]
[Result "1/2-1/2"]
[ECO "B31"]
[WhiteElo "2101"]
[BlackElo "2320"]
[Annotator "ChessBase"]
[PlyCount "62"]
[EventDate "2020.09.07"]
[EventType "swiss"]
[EventCountry "ESP"]
[SourceTitle "playchess.com"]
[Source "ChessBase"]
[SourceQuality "1"]
[TimeControl "5400+30"]

1. e4 {[%emt 0:00:00]} c5 {[%emt 0:00:00]} 2. Nf3 {[%emt 0:00:15]} Nc6 {[%emt 0:00:00]} 3. Bb5 {[%emt 0:00:58]} g6 {[%emt 0:00:05]} 4. O-O {[%emt 0:01:06]} Bg7 {[%emt 0:00:03]} 5. Re1 {[%emt 0:00:23]} Nf6 {[%emt 0:00:13]} 6. e5 {[%emt 0:01:37]} Nd5 {[%emt 0:01:07]} 7. Nc3 {[%emt 0:00:28]} Nc7 {[%emt 0:00:05]} 8. Bxc6 {[%emt 0:00:12]} dxc6 {[%emt 0:00:05]} 9. Ne4 {[%emt 0:00:36]} Ne6 {[%emt 0:02:01]} 10. d3 {[%emt 0:01:00]} O-O {[%emt 0:02:16]} 11. Be3 {[%emt 0:00:39]} b6 {[%emt 0:00:07]} 12. Qd2 {[%emt 0:00:36]} f5 {[%emt 0:00:56]} 13. exf6 {[%emt 0:01:17]} exf6 {[%emt 0:00:09]} 14. Bh6 {[%emt 0:03:22]} a5 {[%emt 0:03:29]} 15. a4 {[%emt 0:04:04]} Ra7 {[%emt 0:02:57]} 16. Bxg7 {[%emt 0:01:10]} Kxg7 {[%emt 0:00:09]} 17. Ng3 {[%emt 0:17:34]} Re7 {[%emt 0:14:33]} 18. Re2 {[%emt 0:00:00]} Nc7 {[%emt 0:15:27]} 19. Rxe7+ {[%emt 0:00:00]} Qxe7 {[%emt 0:00:39]} 20. Re1 {[%emt 0:00:00]} Qf7 {[%emt 0:02:43]} 21. Ne4 {[%emt 0:02:39]} Be6 {[%emt 0:10:29]} 22. b3 {[%emt 0:01:58]} Rd8 {[%emt 0:01:34]} 23. Qf4 {[%emt 0:02:29]} Nd5 {[%emt 0:03:30]} 24. Qg3 {[%emt 0:01:02]} Qd7 {[%emt 0:04:19]} 25. h4 {[%emt 0:06:42]} h5 {[%emt 0:02:40]} 26. c4 {[%emt 0:17:12]} Nc7 {[%emt 0:01:56]} 27. Ne5 {[%emt 0:07:32]} fxe5 {[%emt 0:04:49]} 28. Qxe5+ {[%emt 0:00:13]} Kh6 {[%emt 0:00:28]} 29. Qg5+ {[%emt 0:03:02]} Kg7 {[%emt 0:00:08]} 30. Qe5+ {[%emt 0:05:56]} Kh6 {[%emt 0:00:19]} 31. Qg5+ {[%emt 0:04:02]} Kg7 {[%emt 0:00:01]} 1/2-1/2